Body,Body Name,Date,Transaction Number,Amount,Supplier Name,Supplier ID,Expense Area,Expense Type,Expense Code,Extended Description,Service Code,Service Label,Service Division Label,Service Division Code
http://statistics.data.gov.uk/id/local-authority/16UF,Eden District Council,05/06/2015,143395,1200,JOHN BURROWS PHOTOGRAPHY,BUR034,Communities Director,Promotions,2081,LOAN FUND,EDEVPR,Economic Development and Promotion,02003,Economic Promotion - BRRS
http://statistics.data.gov.uk/id/local-authority/16UF,Eden District Council,05/06/2015,143125,680.97,NEOPOST LIMITED,NEO002,Corporate Services Manager,Postages,2054,BLUE CARTRIDGES,CENTRA,Central Expenses,00205,Postages Town Hall
http://statistics.data.gov.uk/id/local-authority/16UF,Eden District Council,05/06/2015,143225,800,GORDON GRAHAM ROADMARKINGS LTD,GOR002,Engineering Manager,Advertising,2086,CAR PARK ROAD MARKINGS,OFFSTR,Vehicle Parking Off Street,02167,Vehicle parking
http://statistics.data.gov.uk/id/local-authority/16UF,Eden District Council,05/06/2015,142832,2456.32,WALTON GOODLAND LTD,WAL008,Engineering Manager,Land Management Contract,2126,1-30 APR 15 RATE FOR SURVEYOR,LANDMA,Land Management,01007,Land Management
http://statistics.data.gov.uk/id/local-authority/16UF,Eden District Council,05/06/2015,142900,822.66,BRITISH GAS BUSINESS,BRI032,Engineering Manager,Gas,1023,TOWN HALL,ADMBLD,Administrative Buildings,00500,Town Hall
http://statistics.data.gov.uk/id/local-authority/16UF,Eden District Council,05/06/2015,142901,645.65,BRITISH GAS BUSINESS,BRI032,Engineering Manager,Gas,1023,MANSION HOUSE,ADMBLD,Administrative Buildings,00502,Mansion House
http://statistics.data.gov.uk/id/local-authority/16UF,Eden District Council,05/06/2015,142906,3418.55,E.ON UK PLC,EON001,Engineering Manager,Electricity,1022,STREET LIGHTING,FOOLIG,Footway Lighting,02258,Footway lighting
http://statistics.data.gov.uk/id/local-authority/16UF,Eden District Council,05/06/2015,142911,2800,G1 CREATIVE LTD,G1C001,Financial Services Manager,Web Development,2064,G-2128 PENRITH TOWN COUNCIL WEBSITE,CORPOR,Corporate Costs,01184,Penrith Town Council Rechargeable Costs
http://statistics.data.gov.uk/id/local-authority/16UF,Eden District Council,05/06/2015,143014,2906.6,AMEY PLC,TFE001,Engineering Manager,FL  Contract,3300,FL-02/2015,FOOLIG,Footway Lighting,02258,Footway lighting
http://statistics.data.gov.uk/id/local-authority/16UF,Eden District Council,05/06/2015,143128,679.39,MCDOUGALL BUILDING CONTRACTORS,MCD002,Environmental Services,Capital grants,5505,FINAL PAYMENT ,MEREGR,1996 Mandatory Renovation Grants,06035,Disabled Facility Grants
http://statistics.data.gov.uk/id/local-authority/16UF,Eden District Council,05/06/2015,143129,3500,MCDOUGALL BUILDING CONTRACTORS,MCD002,Environmental Services,Capital grants,5505,INTERIM PAYMENT ,MEREGR,1996 Mandatory Renovation Grants,06035,Disabled Facility Grants
http://statistics.data.gov.uk/id/local-authority/16UF,Eden District Council,05/06/2015,143217,882.31,RENTOKIL INITIAL PEST CONTROL,REN009,Environmental Services,Pest Control,3400,PESTS MISC.,PESCON,Pest Control,03043,Pest Control
http://statistics.data.gov.uk/id/local-authority/16UF,Eden District Council,05/06/2015,143224,1000,LIONS CLUB OF PENRITH,LIO003,Communities Manager,Grants and contributions,2079,MAY DAY DONATION,EDEVPR,Economic Development and Promotion,02009,Economic promotion
http://statistics.data.gov.uk/id/local-authority/16UF,Eden District Council,05/06/2015,143228,620,WALTON GOODLAND LTD,WAL008,Engineering Manager,Land Management Contract,2126,LAND ADJACENT LABURNUM HOUSE SOULBY,LANDMA,Land Management,01007,Land Management
http://statistics.data.gov.uk/id/local-authority/16UF,Eden District Council,05/06/2015,143235,5615,ENTERPRISE PROSPECTS LTD,ENT004,Chief Executive's,Agency Staff,0003,R HOOPER MAY 2015,CHIEXE,Chief Executive,00050,Chief Executive
http://statistics.data.gov.uk/id/local-authority/16UF,Eden District Council,05/06/2015,143239,999.41,UNITED UTILITIES WATER LTD,UNI008,Engineering Manager,Water charges � metered,1032,PCS PATTERDALE 11.02.15-06.05.15,PUBCON,Public Conveniences,02271,Patterdale Public Convenience
http://statistics.data.gov.uk/id/local-authority/16UF,Eden District Council,05/06/2015,143249,500,LAZONBY SWIMMING POOL ASSOCIATION,LAZ003,Communities Manager,Grants and contributions,2079,SUMMER 2015 1ST PAYMENT,ARTLEI,Arts and Leisure,02107,Rural pool grants
http://statistics.data.gov.uk/id/local-authority/16UF,Eden District Council,05/06/2015,143355,15000,CYBERMOOR SERVICES LIMITED,CYB001,Communities Manager,Government grants,7000,STATUTORY NOTICES FOR THE 21ST CENTURY,COMMSV,Communications Services,01187,Cybermoor Pilot
http://statistics.data.gov.uk/id/local-authority/16UF,Eden District Council,05/06/2015,143356,511.92,CROSBY RAVENSWORTH VILLAGE HALL,CRO014,Communities Manager,Balance Sheet entry BS,6003,FINAL 25% EDEN COMMUNITY FUND,HOLD A/C'S,Holding Accounts,10400,Community Fund
http://statistics.data.gov.uk/id/local-authority/16UF,Eden District Council,12/06/2015,143526,5000,IAN CANNON LTD,CAN004,Communities Manager,Other charges for services,2047,PATH ADJACENT FRENCHFIELD,ARTLEI,Arts and Leisure,02116,Sports lesiure develop fund
http://statistics.data.gov.uk/id/local-authority/16UF,Eden District Council,12/06/2015,143579,650,METCALFE PLANT & TOOL HIRE LTD,MET002,Engineering Manager,Abnormal maintenance,1007,WALL REPAIRS BLUEBELL LANE,OFFSTR,Vehicle Parking Off Street,02167,Vehicle parking
http://statistics.data.gov.uk/id/local-authority/16UF,Eden District Council,12/06/2015,143594,2240,IAN CANNON LTD,CAN004,Engineering Manager,Bank-Refurbishment,2009,CLEANSE BRING SITES & CONTAINERS,RECYCL,Recycling,03047,Recycling
http://statistics.data.gov.uk/id/local-authority/16UF,Eden District Council,12/06/2015,143597,750,CUMBRIA COUNTY COUNCIL,CUM095,Financial Services Manager,Professional fees,2045,IAS19/FRS17 WORK DONE FOR 31/03/15,FINSER,Financial Services,00101,Financial Services
http://statistics.data.gov.uk/id/local-authority/16UF,Eden District Council,12/06/2015,143645,3000,FREDERICK POTTS & SON LTD,POT003,Financial Services Manager,Balance Sheet entry BS,6003,WORK TO POST & CHAIN FENCE APPLEBY,HOLD A/C'S,Holding Accounts,10190,FawcettBeq Revenue
http://statistics.data.gov.uk/id/local-authority/16UF,Eden District Council,12/06/2015,143230,1254.15,APPLETONS,APP032,Communities Manager,Other charges for services,2047,PENRITH CASTLE PARK,ARTLEI,Arts and Leisure,02116,Sports lesiure develop fund
http://statistics.data.gov.uk/id/local-authority/16UF,Eden District Council,12/06/2015,143375,2555,CUBE COMPANY,CUB002,Communities Manager,Loan Provision,5550,50% DEPOSIT SEATING & TABLES,LEICEN,Eden Leisure Centre & Appleby Swimming P,06155,Loan Provision - Penrith Leisure Centre
http://statistics.data.gov.uk/id/local-authority/16UF,Eden District Council,12/06/2015,143412,952.97,CUBBY CONSTRUCTION LIMITED,CUB001,Communities Manager,NCL Ad-hoc Sports Pitches,1155,WAGON HIRE/STONE DISPOSAL,LEICEN,Eden Leisure Centre & Appleby Swimming P,02130,Sports Facilities
http://statistics.data.gov.uk/id/local-authority/16UF,Eden District Council,12/06/2015,143421,926,ELECTRICITY NORTH WEST LTD,ELE005,Engineering Manager,Building works,5502,LAMP TRANSFER ADJ BRUNSWICK RD,FOOLIG,Footway Lighting,06149,Cap Footway Lighting
http://statistics.data.gov.uk/id/local-authority/16UF,Eden District Council,12/06/2015,143422,926,ELECTRICITY NORTH WEST LTD,ELE005,Engineering Manager,Building works,5502,LAMP TRANSFER HUNTER HALL GT SALKELD,FOOLIG,Footway Lighting,06149,Cap Footway Lighting
http://statistics.data.gov.uk/id/local-authority/16UF,Eden District Council,12/06/2015,143423,926,ELECTRICITY NORTH WEST LTD,ELE005,Engineering Manager,Building works,5502,LAMP TRANSFER STONE HOUSE LAZONBY,FOOLIG,Footway Lighting,06149,Cap Footway Lighting
http://statistics.data.gov.uk/id/local-authority/16UF,Eden District Council,12/06/2015,143424,926,ELECTRICITY NORTH WEST LTD,ELE005,Engineering Manager,Building works,5502,LAMP TRANSFER BARRONWOOD VIEW KIRKOSWALD,FOOLIG,Footway Lighting,06149,Cap Footway Lighting
http://statistics.data.gov.uk/id/local-authority/16UF,Eden District Council,12/06/2015,143425,926,ELECTRICITY NORTH WEST LTD,ELE005,Engineering Manager,Building works,5502,LAMP TRANSFER O/S ROSE COTTAGE LAZONBY,FOOLIG,Footway Lighting,06149,Cap Footway Lighting
http://statistics.data.gov.uk/id/local-authority/16UF,Eden District Council,12/06/2015,143552,3168.1,PPM LTD,PPM001,Environmental Services,Capital grants,5505,FINAL PAYMENT ,MEREGR,1996 Mandatory Renovation Grants,06035,Disabled Facility Grants
http://statistics.data.gov.uk/id/local-authority/16UF,Eden District Council,12/06/2015,143559,2800,ALCIUM SOFTWARE LIMITED,ALC002,Communities Manager,Subscriptions & levies,2078,EVOLUTIVE LICENCE 15/16,EDEVPR,Economic Development and Promotion,02372,Evolutive Database
http://statistics.data.gov.uk/id/local-authority/16UF,Eden District Council,12/06/2015,143560,1228,A S BUSINESS & TECHNICAL SOLUTIONS LTD,ASB006,Communities Manager,Professional fees,2045,LOW HOWGILL MEATS & BARRNON,EDEVPR,Economic Development and Promotion,02001,Economic Promotion
http://statistics.data.gov.uk/id/local-authority/16UF,Eden District Council,12/06/2015,143561,6480,LOGIC,LOG001,Environmental Services,Decent Homes Grants,5524,140085/CHALET ,DIREGR,1996 Discretionary Renovation Grants,06034,1996 Discretionary Renovation Grants
http://statistics.data.gov.uk/id/local-authority/16UF,Eden District Council,12/06/2015,143573,17084.8,J CHAPLOW & SONS LTD,CHA027,Engineering Manager,Equipment � purchase,2000,CASTLE PARK,PARKOS,Parks and Open Spaces,06630,Castle Park Tennis Courts
http://statistics.data.gov.uk/id/local-authority/16UF,Eden District Council,12/06/2015,143583,1159.95,PENRITH PLAYERS THEATRE LTD,PEN002,Communities Manager,Commission,7504,THE LADY KILLERS,TAPTIC,Penrith TIC Trading Account,09164,Penrith TIC - Penrith Players
http://statistics.data.gov.uk/id/local-authority/16UF,Eden District Council,12/06/2015,143584,850,LAKELAND WASTE MANAGEMENT LTD,LAK025,Communities Manager,Community engagement development,2042,DONATION ADMIN CORE COSTS,COMDEV,Community Development & Engagement,01056,Consultation
http://statistics.data.gov.uk/id/local-authority/16UF,Eden District Council,12/06/2015,143602,500,GREYSTOKE SWIMMING POOL,GRE020,Communities Manager,Grants and contributions,2079,EDC GRANT SUMMER 2015 IST PAYMENT,ARTLEI,Arts and Leisure,02107,Rural pool grants
http://statistics.data.gov.uk/id/local-authority/16UF,Eden District Council,12/06/2015,143517,654,IT PROFESSIONAL SERVICES LTD,ITP001,Information Technology Manager,IT Contracts & Maintenance,2062,ANNUAL CONTRACT 7/7/15 - 6/7/16,INFTEC,Information Technology,00102,Information Technology
http://statistics.data.gov.uk/id/local-authority/16UF,Eden District Council,12/06/2015,143524,4720,CUMBRIA CVS,CUM080,Communities Manager,Grants and contributions,2079,CORE FUNDING GRANT,TWNCEN,Town Centres,01091,Eden Cumbria Voluntary Service
http://statistics.data.gov.uk/id/local-authority/16UF,Eden District Council,12/06/2015,143535,3620,TOP NOTCH CONTRACTORS LTD,TOP003,Environmental Services,Capital grants,5505,140071/4 W,MEREGR,1996 Mandatory Renovation Grants,06035,Disabled Facility Grants
http://statistics.data.gov.uk/id/local-authority/16UF,Eden District Council,12/06/2015,143536,1200,POSITIVE PLANNING SOLUTIONS LTD,POS007,Planning Services,Printing and stationary,2037,LOCAL PLANS SUPPORT,LOPLPO,Local Plans & Policy,03004,Eden Local Plan
http://statistics.data.gov.uk/id/local-authority/16UF,Eden District Council,12/06/2015,143229,598.6,PRINT IMAGE NETWORK LTD,PRI011,Financial Services Manager,Balance Sheet entry BS,6003,LARGE FORMAT BALLOT PAPERS,HOLD A/C'S,Holding Accounts,10304,Parliam Election Exp
http://statistics.data.gov.uk/id/local-authority/16UF,Eden District Council,12/06/2015,143238,18206.01,NORTH COUNTRY LEISURE,NCL001,Communities Manager,NCL Castletown Rec Grounds,1154,VALUATION APRIL 2015,LEICEN,Eden Leisure Centre & Appleby Swimming P,02130,Sports Facilities
http://statistics.data.gov.uk/id/local-authority/16UF,Eden District Council,12/06/2015,143248,1002.87,AMEY PLC,TFE001,Engineering Manager,Building Maintenance,1000,SITE WORK MULIPLE LOCATIONS,ADMBLD,Administrative Buildings,00504,Kirkby Thore Store
http://statistics.data.gov.uk/id/local-authority/16UF,Eden District Council,12/06/2015,143377,1857.5,CAPITA PROPERTY CONSULTANCY,CAP003,Planning Services,Professional fees,2045,ARBORICULTURAL SERVICES MAY 2015,CONSER,Environmental Enhancement & Conservation,03012,Aboricutural Advice
http://statistics.data.gov.uk/id/local-authority/16UF,Eden District Council,12/06/2015,143380,885,NORTHERN  HOUSING CONSORTIUM,NOR003,Environmental Services,Professional fees,2045,FULL MEMBERSHIP 15/16,OHOUSG,Housing Delivery,02302,Housing enabling
http://statistics.data.gov.uk/id/local-authority/16UF,Eden District Council,12/06/2015,143383,602,UNITED UTILITIES WATER PLC,UNI024,Environmental Services,Professional fees,2045,WT/FS ANALYSIS,OENHEA,Other Environmental Health,03040,Sampling Swimming Pools
http://statistics.data.gov.uk/id/local-authority/16UF,Eden District Council,12/06/2015,143390,1410,PRINT IMAGE FACILITIES LLP,PRI014,Financial Services Manager,Balance Sheet entry BS,6003,GRASS SKIRT COUNTING SHEETS,HOLD A/C'S,Holding Accounts,10304,Parliam Election Exp
http://statistics.data.gov.uk/id/local-authority/16UF,Eden District Council,12/06/2015,143401,1234.27,NPOWER LTD,NPO001,Engineering Manager,Electricity,1022,TOWN HALL 1/4/15-30/4/15,ADMBLD,Administrative Buildings,00500,Town Hall
http://statistics.data.gov.uk/id/local-authority/16UF,Eden District Council,12/06/2015,143404,687.31,NPOWER LTD,NPO001,Engineering Manager,Electricity,1022,MANSION HOUSE 1/4/15-30/4/15,ADMBLD,Administrative Buildings,00502,Mansion House
http://statistics.data.gov.uk/id/local-authority/16UF,Eden District Council,12/06/2015,143413,1591.31,LOCAL GOVERNMENT ASSOCIATION,LOC005,Engineering Manager,Legal and court costs,2046,PROPERTY SEARCHES LITIGATION/FULBRIGHT/B,LANDCH,Land Charges,01002,Land Charges
http://statistics.data.gov.uk/id/local-authority/16UF,Eden District Council,12/06/2015,142956,654.64,WESTMORLAND FIRE & SECURITY,WES001,Engineering Manager,Rental/Maintenance of Fire Alarm,1050,MAINTENANCE FIRE ALARM 2015/16,ADMBLD,Administrative Buildings,00500,Town Hall
http://statistics.data.gov.uk/id/local-authority/16UF,Eden District Council,12/06/2015,143219,5158.82,AMEY PLC,TFE001,Engineering Manager,Grounds Maint Contract additional works,1001,GM68,CEMETE,Cemeteries,02226,Cemeteries
http://statistics.data.gov.uk/id/local-authority/16UF,Eden District Council,19/06/2015,143660,624,ELECTRICITY NORTH WEST LTD,ELE005,Engineering Manager,Professional fees,2045,LAMP DISC 1 WARCOP,FOOLIG,Footway Lighting,02258,Footway lighting
http://statistics.data.gov.uk/id/local-authority/16UF,Eden District Council,19/06/2015,143708,3865,AMEY PLC,TFE001,Communities Manager,Building Maintenance - Leisure,1101,QUOTED WORKS,LEICEN,Eden Leisure Centre & Appleby Swimming P,02097,Penrith Leisure Centre
http://statistics.data.gov.uk/id/local-authority/16UF,Eden District Council,19/06/2015,143711,6190,PROBRAND LIMITED,PRO008,Information Technology Manager,Supplies general,2015,B51-70 CORE i3-4005U 4GB 500GB D,COMMEM,Committee and Member Costs,01081,Member I T Costs
http://statistics.data.gov.uk/id/local-authority/16UF,Eden District Council,19/06/2015,142935,11144.49,MLL TELECOM LTD,MLL001,Information Technology Manager,IT Contracts & Maintenance,2062,TOWN HALL/MANSION HOUSE ANNUAL RENTAL,INFTEC,Information Technology,00102,Information Technology
http://statistics.data.gov.uk/id/local-authority/16UF,Eden District Council,19/06/2015,143576,4387.5,METCALFE PLANT & TOOL HIRE LTD,MET002,Engineering Manager,Abnormal maintenance,1007,DRAINAGE WORKS HOWARD PARK,LANDMA,Land Management,02245,Land Drainage
http://statistics.data.gov.uk/id/local-authority/16UF,Eden District Council,19/06/2015,143577,3485,METCALFE PLANT & TOOL HIRE LTD,MET002,Engineering Manager,Signs,1038,CAR PARK SIGNAGE,OFFSTR,Vehicle Parking Off Street,02167,Vehicle parking
http://statistics.data.gov.uk/id/local-authority/16UF,Eden District Council,19/06/2015,143578,1846,METCALFE PLANT & TOOL HIRE LTD,MET002,Engineering Manager,Abnormal maintenance,1007,POTHOLE WORKS MANSION HSE,OFFSTR,Vehicle Parking Off Street,02167,Vehicle parking
http://statistics.data.gov.uk/id/local-authority/16UF,Eden District Council,19/06/2015,143614,75000,CUMBRIA COUNTY COUNCIL,CCC002,Communities Director,Promotions,2081,GILWILLY PINCHPOINT FUNDING 2nd INSTALLMENT,EDEVPR,Economic Development and Promotion,02003,Economic Promotion - BRRS
http://statistics.data.gov.uk/id/local-authority/16UF,Eden District Council,19/06/2015,143620,11954.15,LYON PROPERTIES LTD,LYO002,Communities Director,Balance Sheet entry BS,6003,REFUND OF S106 AGREEMENT,HOLD A/C'S,Holding Accounts,10361,S106 Blencow - Sursuus
http://statistics.data.gov.uk/id/local-authority/16UF,Eden District Council,19/06/2015,143653,700,DENISE CALVERT LTD,CAL019,Revenue/Benefits Manager,Supplies general,2015,BENEFIT WORK  2 DAYS,CTXBEN,Council Tax Benefits,01164,Local Council Tax Scheme
http://statistics.data.gov.uk/id/local-authority/16UF,Eden District Council,19/06/2015,143654,706.96,ALSTON TOWN HALL TRUSTEES,ALS003,Engineering Manager,Gas,1023,ELECTRIC/GAS CHARGES,COMDEV,Community Development & Engagement,02064,Alston Council Centre - Building
http://statistics.data.gov.uk/id/local-authority/16UF,Eden District Council,19/06/2015,143657,926,ELECTRICITY NORTH WEST LTD,ELE005,Engineering Manager,Building works,5502,LAMP TRANSFER 1 STATION VIEW,FOOLIG,Footway Lighting,06149,Cap Footway Lighting
http://statistics.data.gov.uk/id/local-authority/16UF,Eden District Council,19/06/2015,143661,6186.43,PRINT IMAGE NETWORK LTD,PRI011,Financial Services Manager,Balance Sheet entry BS,6003,PARLIMENTARY FLEXI VOTE POSTAL,HOLD A/C'S,Holding Accounts,10304,Parliam Election Exp
http://statistics.data.gov.uk/id/local-authority/16UF,Eden District Council,19/06/2015,143662,4288.32,PRINT IMAGE NETWORK LTD,PRI011,Financial Services Manager,Balance Sheet entry BS,6003,PARLIAMENTARY BALLOT BOOKS,HOLD A/C'S,Holding Accounts,10304,Parliam Election Exp
http://statistics.data.gov.uk/id/local-authority/16UF,Eden District Council,19/06/2015,143665,40000,PENRITH B I D,PEN063,Revenue/Benefits Manager,Contribution by EDC,2080,MAY 2015 MONIES,HOLD A/C'S,Holding Accounts,08108,Penrith BID Cash
http://statistics.data.gov.uk/id/local-authority/16UF,Eden District Council,19/06/2015,143670,1925.75,PRINT IMAGE NETWORK LTD,PRI011,Financial Services Manager,Balance Sheet entry BS,6003,PARISH BALLOT BOOKS,HOLD A/C'S,Holding Accounts,10304,Parliam Election Exp
http://statistics.data.gov.uk/id/local-authority/16UF,Eden District Council,19/06/2015,143671,2840.5,PRINT IMAGE NETWORK LTD,PRI011,Financial Services Manager,Balance Sheet entry BS,6003,LOCAL BALLOT BOOKS,HOLD A/C'S,Holding Accounts,10304,Parliam Election Exp
http://statistics.data.gov.uk/id/local-authority/16UF,Eden District Council,19/06/2015,143673,1260,CIVICA UK LTD,CIV002,Revenue/Benefits Manager,Supplies general,2015,REVENUES PROCESSING BY CIVICA ON DEMAND,CTXBEN,Council Tax Benefits,01164,Local Council Tax Scheme
http://statistics.data.gov.uk/id/local-authority/16UF,Eden District Council,19/06/2015,143676,5040,RMT SLATING/TILING LTD,RMT001,Environmental Services,Decent Homes Grants,5524,INTERIM PAYMENT,DIREGR,1996 Discretionary Renovation Grants,06034,1996 Discretionary Renovation Grants
http://statistics.data.gov.uk/id/local-authority/16UF,Eden District Council,19/06/2015,143677,2770,JOHN WATSON,WAT037,Environmental Services,Decent Homes Grants,5524,INTERIM PAYMENT,DIREGR,1996 Discretionary Renovation Grants,06034,1996 Discretionary Renovation Grants
http://statistics.data.gov.uk/id/local-authority/16UF,Eden District Council,19/06/2015,143678,7025,DURHAM COUNTY COUNCIL,DUR008,Planning Services,Grants and contributions,2079,2015/16 CONTRIBUTION TO NORTH PENNINES AONB,CONSER,Environmental Enhancement & Conservation,03016,North Pennines AONB Initiative
http://statistics.data.gov.uk/id/local-authority/16UF,Eden District Council,19/06/2015,143684,2707.6,PRINT IMAGE NETWORK LTD,PRI011,Financial Services Manager,Balance Sheet entry BS,6003,EDEN MAY ELECTION A5  POLL CARDS,HOLD A/C'S,Holding Accounts,10304,Parliam Election Exp
http://statistics.data.gov.uk/id/local-authority/16UF,Eden District Council,19/06/2015,143685,4926.76,PRINT IMAGE NETWORK LTD,PRI011,Financial Services Manager,Balance Sheet entry BS,6003,COMBINED LOCAL & PARISH FLEXI VOTE,HOLD A/C'S,Holding Accounts,10304,Parliam Election Exp
http://statistics.data.gov.uk/id/local-authority/16UF,Eden District Council,19/06/2015,143698,32125.43,AMEY PLC,TFE001,Engineering Manager,GM INSPECTIONS & MAINTENANCE,1089,M-GM39,CLCHYD,Closed Church Yards,02246,War Memorials
http://statistics.data.gov.uk/id/local-authority/16UF,Eden District Council,19/06/2015,142839,505,PRINT IMAGE FACILITIES LLP,PRI014,Financial Services Manager,Balance Sheet entry BS,6003,EDEN ELECTION WRISTBANDS,HOLD A/C'S,Holding Accounts,10304,Parliam Election Exp
http://statistics.data.gov.uk/id/local-authority/16UF,Eden District Council,19/06/2015,143360,1185.56,ROYAL MAIL NW,ROY001,Revenue/Benefits Manager,Postages,2054,POST CHARGES 29.04.15-19.05.15,REVBEN,Revenue & Benefits,00106,Revenues
http://statistics.data.gov.uk/id/local-authority/16UF,Eden District Council,19/06/2015,143376,1499.4,BUREAU VERITAS HS&E LIMITED,BUR017,Environmental Services,Professional fees,2045,SOURCING FEE,POLCNL,Pollution Control,03027,Air Pollution
http://statistics.data.gov.uk/id/local-authority/16UF,Eden District Council,19/06/2015,143518,546,DENISE CALVERT LTD,CAL019,Revenue/Benefits Manager,Supplies general,2015,BENEFIT WORK 20/5 & 21/5/15,CTXBEN,Council Tax Benefits,01164,Local Council Tax Scheme
http://statistics.data.gov.uk/id/local-authority/16UF,Eden District Council,19/06/2015,143525,1682.1,CUMBRIA COUNTY COUNCIL,CCC002,Engineering Manager,Professional fees,2045,SEARCHES APRIL 2015,LANDCH,Land Charges,01002,Land Charges
http://statistics.data.gov.uk/id/local-authority/16UF,Eden District Council,19/06/2015,143551,3799.63,HEATONS OFFICE SOLUTIONS LTD,LAK004,Financial Services Manager,Balance Sheet entry BS,6003,STATIONERY/FURNITURE,HOLD A/C'S,Holding Accounts,10304,Parliam Election Exp
http://statistics.data.gov.uk/id/local-authority/16UF,Eden District Council,19/06/2015,143581,970,HALAROSE LIMITED,HAL013,Director of Corporate and Legal Services,Supplies general,2015,ELECTION SETUP,ELECTI,Elections,01068,Elections
http://statistics.data.gov.uk/id/local-authority/16UF,Eden District Council,19/06/2015,143585,1046.83,CARRIER DIRECT,CAR010,Communities Manager,Advertising,2086,MAY 2015 FULFILMENT COSTS,TOUPRO,Tourism Promotion,02056,Eden Tourism
http://statistics.data.gov.uk/id/local-authority/16UF,Eden District Council,19/06/2015,143589,5778.2,KTDONLINE,KTD001,Financial Services Manager,Computer equipment,2061,HARDWARE SOFTWARE & SERVICES QTE 2015453,CORPOR,Corporate Costs,01184,Penrith Town Council Rechargeable Costs
http://statistics.data.gov.uk/id/local-authority/16UF,Eden District Council,19/06/2015,143590,1021,CUMBRIA ASSOCIATION OF LOCAL COUNCILS,CUM039,Financial Services Manager,Subscriptions & levies,2078,CALC MEMBERSHIP 2015/16,CORPOR,Corporate Costs,01184,Penrith Town Council Rechargeable Costs
http://statistics.data.gov.uk/id/local-authority/16UF,Eden District Council,19/06/2015,143593,1786,WALTON GOODLAND LTD,WAL008,Engineering Manager,Land Management Contract,2126,RATE FOR SURVEYOR MAY 2015,LANDMA,Land Management,01007,Land Management
http://statistics.data.gov.uk/id/local-authority/16UF,Eden District Council,15/06/2015,143831,684,ENVIRONMENT AGENCY,ENV004,Engineering Manager,Building Maintenance,1000,TRADE COMP SITE DRAINAGE - EDEN BUS PARK DDR 01/04/15 TO 31/03/16,LANDMA,Land Management,01007,Land Management
http://statistics.data.gov.uk/id/local-authority/16UF,Eden District Council,18/06/2015,143874,1016,BUSY BEES CHILDCARE VOUCHERS,BUS004,Planning Services,Child Care Voucher Scheme,0005,CHILDCARE VOUCHERS 18/06/15 DDR,PLASER,Planning Services,00304,Planning Services
http://statistics.data.gov.uk/id/local-authority/16UF,Eden District Council,26/06/2015,143833,6264.44,AMEY PLC,TFE001,Financial Services Manager,Balance Sheet entry BS,6003,COLLECT/DELIVER WORK ELECTIONS,HOLD A/C'S,Holding Accounts,10304,Parliam Election Exp
http://statistics.data.gov.uk/id/local-authority/16UF,Eden District Council,26/06/2015,143888,750,IAN CANNON LTD,CAN004,Communities Manager,Building Maintenance,1000,REPLACE HANDRAILS FRENCHFIELD,LEICEN,Eden Leisure Centre & Appleby Swimming P,02101,Frenchfield - Building
http://statistics.data.gov.uk/id/local-authority/16UF,Eden District Council,26/06/2015,143898,700,JOHN BURROWS PHOTOGRAPHY,BUR034,Communities Director,Promotions,2081,LOGIC VIDEO,EDEVPR,Economic Development and Promotion,02003,Economic Promotion - BRRS
http://statistics.data.gov.uk/id/local-authority/16UF,Eden District Council,26/06/2015,142835,1000,DESIGNWORKS LTD,DES001,Communities Manager,Supplies general,2015,APPLEBY HORSE FAIR MARKETING,COMMSV,Communications Services,01138,Publications & Advertising
http://statistics.data.gov.uk/id/local-authority/16UF,Eden District Council,26/06/2015,143608,9668.79,AMEY PLC,TFE001,Engineering Manager,Building works,5502,INSTALLATION OF LIGHT COLUMNS,FOOLIG,Footway Lighting,06149,Cap Footway Lighting
http://statistics.data.gov.uk/id/local-authority/16UF,Eden District Council,26/06/2015,143656,926,ELECTRICITY NORTH WEST LTD,ELE005,Engineering Manager,Building works,5502,LAMP TRANSFER SHANNONDALE NEWBIGGIN,FOOLIG,Footway Lighting,06149,Cap Footway Lighting
http://statistics.data.gov.uk/id/local-authority/16UF,Eden District Council,26/06/2015,143682,987,MARMAX PRODUCTS LTD,MAR026,Engineering Manager,GroundsMaintenanceSeats&AmenitiesProvSum,1097,TRADITIONAL BROWN 3 SEAT,PARKOS,Parks and Open Spaces,02124,Parks & open spaces
http://statistics.data.gov.uk/id/local-authority/16UF,Eden District Council,26/06/2015,143709,13250.93,AMEY PLC,TFE001,Engineering Manager,Building works,5502,SUPPY/INSTALL LIGHT COLUMNS,FOOLIG,Footway Lighting,06149,Cap Footway Lighting
http://statistics.data.gov.uk/id/local-authority/16UF,Eden District Council,26/06/2015,143835,4506.41,CUMBRIA WASTE RECYCLING LTD,CUM022,Engineering Manager,material price fluctuations,3604,F-02-15/16,RECYCL,Recycling,03047,Recycling
http://statistics.data.gov.uk/id/local-authority/16UF,Eden District Council,26/06/2015,143836,1938.13,HALAROSE LIMITED,HAL013,Financial Services Manager,Balance Sheet entry BS,6003,AVANTGUARD ON SITE SERVICE TRAVEL/DISPER,HOLD A/C'S,Holding Accounts,10304,Parliam Election Exp
http://statistics.data.gov.uk/id/local-authority/16UF,Eden District Council,26/06/2015,143837,1244,HALAROSE LIMITED,HAL013,Financial Services Manager,Balance Sheet entry BS,6003,AVANTGUARD TRAINING/TRAVEL,HOLD A/C'S,Holding Accounts,10304,Parliam Election Exp
http://statistics.data.gov.uk/id/local-authority/16UF,Eden District Council,26/06/2015,143842,715.88,CANON UK LIMITED,CAN001,Information Technology Manager,Photocopying expenses,2038,IRC7062I MANSION HOUSE,CENTRA,Central Expenses,00107,Printing - Information Technology
http://statistics.data.gov.uk/id/local-authority/16UF,Eden District Council,26/06/2015,143849,1211.85,NPOWER LTD,NPO001,Engineering Manager,Electricity,1022,TOWN HALL 01/05-01/06/15,ADMBLD,Administrative Buildings,00500,Town Hall
http://statistics.data.gov.uk/id/local-authority/16UF,Eden District Council,26/06/2015,143854,532.32,NPOWER LTD,NPO001,Communities Manager,Electricity,1022,PENRITH TIC 01/04-31/05/15,MUSEUM,Museum,02090,Penrith Museum
http://statistics.data.gov.uk/id/local-authority/16UF,Eden District Council,26/06/2015,143856,662.48,NPOWER LTD,NPO001,Engineering Manager,Electricity,1022,MANSION HOUSE MAY 2015,ADMBLD,Administrative Buildings,00502,Mansion House
http://statistics.data.gov.uk/id/local-authority/16UF,Eden District Council,26/06/2015,143862,715.88,CANON UK LIMITED,CAN001,Information Technology Manager,Photocopying expenses,2038,IRC7065I TOWN HALL,CENTRA,Central Expenses,00107,Printing - Information Technology
http://statistics.data.gov.uk/id/local-authority/16UF,Eden District Council,26/06/2015,143865,1101.95,GREENFIELDS HEAT & POWER LTD,GRE035,Engineering Manager,Gas equipment maintenance,1019,GAS SAFETY CHECKS VARIOUS PROPERTIES,PUBCON,Public Conveniences,02267,Penrith Bluebell Lane Public Convenience
http://statistics.data.gov.uk/id/local-authority/16UF,Eden District Council,26/06/2015,143869,6340,BRITTLETON BUILDERS,BRI007,Environmental Services,Capital grants,5505,FINAL PAYMENT,MEREGR,1996 Mandatory Renovation Grants,06035,Disabled Facility Grants
http://statistics.data.gov.uk/id/local-authority/16UF,Eden District Council,26/06/2015,143870,1089.72,CUBBY CONSTRUCTION LIMITED,CUB001,Communities Manager,NCL Ad-hoc Sports Pitches,1155,STONE PICKER/WAGON/STONE DISPOSAL,LEICEN,Eden Leisure Centre & Appleby Swimming P,02130,Sports Facilities
http://statistics.data.gov.uk/id/local-authority/16UF,Eden District Council,26/06/2015,143881,726.41,UNITED UTILITIES WATER LTD,UNI008,Engineering Manager,Water charges � metered,1032,PCS BLUEBELL LANE 06.03.15-03.06.15,PUBCON,Public Conveniences,02267,Penrith Bluebell Lane Public Convenience
http://statistics.data.gov.uk/id/local-authority/16UF,Eden District Council,26/06/2015,143906,2000,NEOPOST LIMITED,NEO001,Corporate Services Manager,Postages,2054,FRANKING MACHINE REFILL,CENTRA,Central Expenses,00205,Postages Town Hall
http://statistics.data.gov.uk/id/local-authority/16UF,Eden District Council,26/06/2015,143700,65533.08,AMEY PLC,TFE001,Engineering Manager,Contract refuse collection,3003,M-RC39,REFCOL,Refuse Collection,03050,Clinical Expenditure
http://statistics.data.gov.uk/id/local-authority/16UF,Eden District Council,26/06/2015,143701,17153.25,AMEY PLC,TFE001,Environmental Services,Street Cleaning Contract,3100,M-SC39,APFAIR,Appleby Fair,03036,Appleby Fair
http://statistics.data.gov.uk/id/local-authority/16UF,Eden District Council,26/06/2015,143702,4533.08,CUMBRIA WASTE RECYCLING LTD,CUM022,Engineering Manager,material price fluctuations,3604,F-01-15/16,RECYCL,Recycling,03047,Recycling
http://statistics.data.gov.uk/id/local-authority/16UF,Eden District Council,26/06/2015,143712,14206,GRANT THORNTON UK LLP,THO026,Financial Services Manager,Audit fee,2043,14/15 EXTERNAL AUDIT INST: 4 OF 4,CORPOR,Corporate Costs,01065,Audit Fee
http://statistics.data.gov.uk/id/local-authority/16UF,Eden District Council,26/06/2015,143716,2906.6,AMEY PLC,TFE001,Engineering Manager,FL  Contract,3300,FL-03/2015,FOOLIG,Footway Lighting,02258,Footway lighting
http://statistics.data.gov.uk/id/local-authority/16UF,Eden District Council,26/06/2015,143717,824,CUMBRIA WASTE RECYCLING LTD,CUM022,Engineering Manager,Garden Waste Skips,2014,GARDEN WASTE SKIPS MAY 2015,RECYCL,Recycling,03047,Recycling
http://statistics.data.gov.uk/id/local-authority/16UF,Eden District Council,26/06/2015,143726,592.07,BRITISH GAS BUSINESS,BRI032,Engineering Manager,Gas,1023,TOWN HALL 28.04-27.05.15,ADMBLD,Administrative Buildings,00500,Town Hall
http://statistics.data.gov.uk/id/local-authority/16UF,Eden District Council,26/06/2015,143731,6007.81,CUMBRIA WASTE RECYCLING LTD,CUM022,Engineering Manager,material price fluctuations,3604,BS-F-09-15/16,RECYCL,Recycling,03047,Recycling
http://statistics.data.gov.uk/id/local-authority/16UF,Eden District Council,26/06/2015,143732,5920.73,CUMBRIA WASTE RECYCLING LTD,CUM022,Engineering Manager,material price fluctuations,3604,BS-F-10-15/16,RECYCL,Recycling,03047,Recycling
http://statistics.data.gov.uk/id/local-authority/16UF,Eden District Council,26/06/2015,143389,555.57,HEWLETT PACKARD LTD,HEW005,Information Technology Manager,Printers Contract,2059,BILLING PERIOD 01.04.15-30.04.15,INFTEC,Information Technology,00102,Information Technology
http://statistics.data.gov.uk/id/local-authority/16UF,Eden District Council,26/06/2015,143617,555.57,HEWLETT PACKARD LTD,HEW005,Information Technology Manager,Printers Contract,2059,SMART SERVICES MAY 15,INFTEC,Information Technology,00102,Information Technology
http://statistics.data.gov.uk/id/local-authority/16UF,Eden District Council,26/06/2015,143648,4702.8,ROGER DAVIES - ELECTORAL SERVICES CONSULTANT,DAV037,Director of Corporate and Legal Services,Agency Staff,0003,R DAVIES 9 DAYS MAY 2015,ELECTI,Elections,01068,Elections
http://statistics.data.gov.uk/id/local-authority/16UF,Eden District Council,26/06/2015,143667,2018.64,AMEY PLC,TFE001,Financial Services Manager,Insurance,2085,WORK ON STORM DAMAGE,INSURA,Insurance,01098,Insurance
http://statistics.data.gov.uk/id/local-authority/16UF,Eden District Council,26/06/2015,143675,2726,AMEY PLC,TFE001,Engineering Manager,ADHOC WORKS FOR BURIALS,1079,GM63,CEMETE,Cemeteries,02228,Appleby Cemetery
http://statistics.data.gov.uk/id/local-authority/16UF,Eden District Council,26/06/2015,143686,631,BRITISH PARKING ASSOCIATION,BRI019,Engineering Manager,Advertising,2086,BPA MEMBERSHIP RENEWAL 15/16,OFFSTR,Vehicle Parking Off Street,02167,Vehicle parking
http://statistics.data.gov.uk/id/local-authority/16UF,Eden District Council,26/06/2015,143962,1880,IAN CANNON LTD,CAN004,Engineering Manager,Building Maintenance,1000,REPAIR TO WALL MANSION HOUSE,ADMBLD,Administrative Buildings,00502,Mansion House
http://statistics.data.gov.uk/id/local-authority/16UF,Eden District Council,26/06/2015,143999,2950,LAN 2 LAN LTD,LAN034,Information Technology Manager,IT Contracts & Maintenance,2062,FORTINET 100D 3 YEAR RENEWAL,INFTEC,Information Technology,00102,Information Technology
http://statistics.data.gov.uk/id/local-authority/16UF,Eden District Council,26/06/2015,143852,14270,AMEY PLC,TFE001,Engineering Manager,FL Schedule of Rates,3302,SUPPLY/INSTALL LIGHT COLUMNS,FOOLIG,Footway Lighting,02258,Footway lighting
http://statistics.data.gov.uk/id/local-authority/16UF,Eden District Council,26/06/2015,142895,500,R&D COWIN,COW002,Engineering Manager,Building works,5502,NURSERY PLANTS,LANDMA,Land Management,06144,Land Assembley - Town Hall Site
http://statistics.data.gov.uk/id/local-authority/16UF,Eden District Council,26/06/2015,142928,5502,BORDERLOOS,BOR003,Environmental Services,Toilet Provision,1008,TOILET UNITS/SERVICE/TRANSPORT,APFAIR,Appleby Fair,03036,Appleby Fair
http://statistics.data.gov.uk/id/local-authority/16UF,Eden District Council,26/06/2015,143240,1209.97,POSTURITE LTD,POS006,Engineering Manager,Other charges for services,2047,DOCUMENT SLOPES,CENTRA,Central Expenses,00212,Health & Safety
http://statistics.data.gov.uk/id/local-authority/16UF,Eden District Council,26/06/2015,143574,1998,JERRY  SPENCER ASSOCIATES,SPE004,Planning Services,Professional fees,2045,DESIGN CONSULTANCY SERVICES,DEVCOE,Development Control & Enforcement,03010,Development Control & Enforcement
http://statistics.data.gov.uk/id/local-authority/16UF,Eden District Council,26/06/2015,143600,11460.83,NORTH COUNTRY LEISURE,NCL001,Communities Manager,NCL Castletown Rec Grounds,1154,VALUATION MAY 2015,LEICEN,Eden Leisure Centre & Appleby Swimming P,02130,Sports Facilities
http://statistics.data.gov.uk/id/local-authority/16UF,Eden District Council,26/06/2015,143609,2546.55,ROSIE SERGISON HR/TRAINING CONSULTANT,SER003,Human Resources Manager,Workforce Development Plan Activity,2229,HR SUPPORT MAY 15 56.59HRS,STADEV,Staff Development,00222,Central Training Budget
http://statistics.data.gov.uk/id/local-authority/16UF,Eden District Council,26/06/2015,143610,500,KAVENEY HR SOLUTIONS LIMITED,KAV001,Human Resources Manager,Professional fees,2045,CONSULTANCY MAY 15,HUMRES,Human Resources,00207,Human Resources
http://statistics.data.gov.uk/id/local-authority/16UF,Eden District Council,26/06/2015,143616,600,GOVNET COMMUNICATIONS,GOV001,Corporate Services Manager,Professional fees,2045,OPTIMISING INCOME GENERATION 2 X DELEGATES,CORPOR,Corporate Costs,01177,SP18 Corporate Projects
http://statistics.data.gov.uk/id/local-authority/16UF,Eden District Council,26/06/2015,143729,1776,PENRITH PARTNERSHIP LIMITED,PEN031,Communities Manager,Community engagement development,2042,GRANT FUNDING EDEN FOOD/FARMING,COMDEV,Community Development & Engagement,01056,Consultation
http://statistics.data.gov.uk/id/local-authority/16UF,Eden District Council,26/06/2015,143840,869.19,AMEY PLC,TFE001,Environmental Services,Dog Contract O.O.H retainer,3200,KENNELLING/STRAY DOGS,CODOGS,Community Wardens,03045,Dog Control
http://statistics.data.gov.uk/id/local-authority/16UF,Eden District Council,26/06/2015,143861,1199,AMEY PLC,TFE001,Engineering Manager,GM External Contractors,1080,QUOTED WORKS CASTLE PARK,PARKOS,Parks and Open Spaces,02143,Play Areas
http://statistics.data.gov.uk/id/local-authority/16UF,Eden District Council,26/06/2015,143866,3349.87,NORTH WEST LOCAL AUTHORITIES EMPLOYERS ORGANISATION,NOR001,Human Resources Manager,Subscriptions & levies,2078,MEMBERSHIP FEE,CENTRA,Central Expenses,00210,NWLAEO
http://statistics.data.gov.uk/id/local-authority/16UF,Eden District Council,26/06/2015,143867,1000,APPLEBY BOWLING CLUB,APP018,Environmental Services,Other charges for services,2047,hire of appleby bowling club appleby fai,APFAIR,Appleby Fair,03036,Appleby Fair
http://statistics.data.gov.uk/id/local-authority/16UF,Eden District Council,26/06/2015,143878,882.31,RENTOKIL INITIAL PEST CONTROL,REN009,Environmental Services,Pest Control,3400,PESTS JULY 2015,PESCON,Pest Control,03043,Pest Control
http://statistics.data.gov.uk/id/local-authority/16UF,Eden District Council,26/06/2015,143880,637.5,MR P D JACKSON,JAC015,Environmental Services,Agency Staff,0003,23.5 HOURS MAY 2015,ENVSER,Environmental Services,00303,Environmental Services
http://statistics.data.gov.uk/id/local-authority/16UF,Eden District Council,26/06/2015,143892,14178.14,AMEY PLC,TFE001,Engineering Manager,Street Cleaning Dayworks,3101,SC25,STRCLE,Street Cleaning,02247,Street Cleaning
http://statistics.data.gov.uk/id/local-authority/16UF,Eden District Council,26/06/2015,143896,500,BOTTOMLINE TECHNOLOGIES EUROPE LIMITED,BOT002,Financial Services Manager,Software � maintenance,2067,C - SERIES PROFESSIONAL SERVICES,FINSER,Financial Services,00101,Financial Services
http://statistics.data.gov.uk/id/local-authority/16UF,Eden District Council,26/06/2015,143899,500,JOHN BURROWS PHOTOGRAPHY,BUR034,Communities Director,Promotions,2081,EDEN ECONOMIC DEVELOPMENT,EDEVPR,Economic Development and Promotion,02003,Economic Promotion - BRRS
http://statistics.data.gov.uk/id/local-authority/16UF,Eden District Council,26/06/2015,143974,3601,HANDICARE ACCESSIBILITY LTD,FRE002,Environmental Services,Capital grants,5505,FINAL PAYMENT ,MEREGR,1996 Mandatory Renovation Grants,06035,Disabled Facility Grants
http://statistics.data.gov.uk/id/local-authority/16UF,Eden District Council,26/06/2015,143975,1845.29,NORTH COUNTRY LEISURE,NCL001,Financial Services Manager,Balance Sheet entry BS,6003,HIRE OF HALL/REFRESHMENTS ELECTION,HOLD A/C'S,Holding Accounts,10304,Parliam Election Exp
http://statistics.data.gov.uk/id/local-authority/16UF,Eden District Council,26/06/2015,143976,682.5,ALSTON TOWN HALL TRUSTEES,ALS003,Engineering Manager,Alston Info Centre Cleaning to Recharge,1062,CLEANING/MAINT PLUS HOLIDAYS,COMDEV,Community Development & Engagement,02064,Alston Council Centre - Building
http://statistics.data.gov.uk/id/local-authority/16UF,Eden District Council,26/06/2015,143986,1318.95,PRINT IMAGE FACILITIES LLP,PRI014,Financial Services Manager,Balance Sheet entry BS,6003,EDEN BY ELECTION POLL CARD POSTAGE,HOLD A/C'S,Holding Accounts,10304,Parliam Election Exp
http://statistics.data.gov.uk/id/local-authority/16UF,Eden District Council,26/06/2015,143989,770,redacted information,BIR015,Planning Services,Charges for services,8000,PLANNING APP REFUND 15/0142,DEVCOE,Development Control & Enforcement,03010,Development Control & Enforcement
http://statistics.data.gov.uk/id/local-authority/16UF,Eden District Council,26/06/2015,143656,11650,LGPS,LGP001,Financial Services Manager,Additional Pensions,0030,Additional Employers Superannuation Cont,CORPOR,Corporate Costs,01179,Additional Employers Superannuation Cont
http://statistics.data.gov.uk/id/local-authority/16UF,Eden District Council,26/06/2015,143657,1192.08,Santander Bank,SAN001,Financial Services Manager,Bank charges,2088,Bank charges May,CORPOR,Corporate Costs,01064,Bank Charges
http://statistics.data.gov.uk/id/local-authority/16UF,Eden District Council,26/06/2015,143940,2002.48,Barclays  Bank,BBB001,Financial Services Manager,Bank charges,2088,quarterly commision charges,CORPOR,Corporate Costs,01064,Bank Charges
